[Event "5th Thessaloniki SKG Open-B 2024"]
[Site "Thessaloniki"]
[Date "2024.08.07"]
[Round "3.2"]
[White "Hatzigrigoriou, Georgios"]
[Black "Petkakis, Odysseas"]
[Result "0-1"]
[ECO "C44"]
[WhiteElo "1800"]
[BlackElo "1701"]
[Annotator "NA RC"]
[PlyCount "88"]
[EventDate "2024.08.05"]
[EventType "swiss"]
[EventCountry "GRE"]
[SourceTitle "playchess.com"]
[Source "ChessBase"]
[SourceQuality "1"]
[TimeControl "40/5400+30:1800+30"]

1. e4 {[%emt 0:00:05]} e5 {[%emt 0:00:10]} 2. Nf3 {[%emt 0:00:02]} Nc6 {[%emt 0:00:11]} 3. d4 {[%emt 0:00:05]} exd4 {[%emt 0:00:13]} 4. Bc4 {[%emt 0:00:01]} Bb4+ {[%emt 0:02:31]} 5. c3 {[%emt 0:00:05]} dxc3 {[%emt 0:01:51]} 6. bxc3 {[%emt 0:00:03]} Bd6 {[%emt 0:01:37]} 7. O-O {[%emt 0:04:10]} Nge7 {[%emt 0:02:25]} 8. Re1 {[%emt 0:03:36]} O-O {[%emt 0:02:59]} 9. e5 {[%emt 0:01:42]} Bc5 {[%emt 0:00:59]} 10. Ng5 {[%emt 0:01:19]} d5 {[%emt 0:02:42]} 11. exd6 {[%emt 1:24:52]} Qxd6 {[%emt 0:00:44]} 12. Qb3 {[%emt 0:00:00]} Qg6 {[%emt 0:07:01]} 13. Bf4 {[%emt 0:00:00]} Bb6 {[%emt 0:02:46]} 14. Nd2 {[%emt 0:00:00]} h6 {[%emt 0:02:36]} 15. Ngf3 {[%emt 0:00:00]} Bg4 {[%emt 0:08:14]} 16. Qa3 {[%emt 0:00:00]} Bxf3 {[%emt 0:06:48]} 17. Nxf3 {[%emt 0:00:00]} Qg4 {[%emt 0:00:37]} 18. Re4 {[%emt 0:00:00]} g5 {[%emt 0:01:31]} 19. Rae1 {[%emt 0:00:00]} gxf4 {[%emt 0:01:45]} 20. Rxe7 {[%emt 0:00:00]} Nxe7 {[%emt 0:00:24]} 21. Qxe7 {[%emt 0:00:00]} Qf5 {[%emt 0:06:19]} 22. Re5 {[%emt 0:00:00]} Qb1+ {[%emt 0:01:17]} 23. Re1 {[%emt 0:00:00]} Qc2 {[%emt 0:01:52]} 24. Re2 {[%emt 0:00:00]} Qxc3 {[%emt 0:02:11]} 25. Bb3 {[%emt 0:00:00]} Kg7 {[%emt 0:04:19]} 26. h3 {[%emt 0:00:00]} Rae8 {[%emt 0:00:48]} 27. Qxe8 {[%emt 0:00:00]} Rxe8 {[%emt 0:00:14]} 28. Rxe8 {[%emt 0:00:00]} Qc1+ {[%emt 0:01:19]} 29. Re1 {[%emt 0:00:00]} Qb2 {[%emt 0:00:23]} 30. Re7 {[%emt 0:00:00]} Bxf2+ {[%emt 0:00:40]} 31. Kf1 {[%emt 0:00:00]} Bg3 {[%emt 0:01:37]} 32. Re2 {[%emt 0:00:00]} Qc1+ {[%emt 0:00:22]} 33. Ne1 {[%emt 0:00:00]} c5 {[%emt 0:00:36]} 34. Bd5 {[%emt 0:00:00]} c4 {[%emt 0:04:00]} 35. Bxb7 {[%emt 0:00:00]} c3 {[%emt 0:00:53]} 36. Be4 {[%emt 0:00:00]} c2 {[%emt 0:00:59]} 37. Bxc2 {[%emt 0:00:00]} Bxe1 {[%emt 0:00:17]} 38. Rxe1 {[%emt 0:00:00]} Qxc2 {[%emt 0:00:38]} 39. Re2 {[%emt 0:00:00]} Qd3 {[%emt 0:00:31]} 40. Kf2 {[%emt 0:00:00]} Qg3+ {[%emt 0:00:00]} 41. Kg1 {[%emt 0:00:00]} Kf6 {[%emt 0:02:15]} 42. Kf1 {[%emt 0:00:00]} Kf5 {[%emt 0:01:31]} 43. Rf2 {[%emt 0:00:00]} Qd3+ {[%emt 0:01:23]} 44. Ke1 {[%emt 0:00:00]} Qb1+ {[%emt 0:00:18]} 0-1

[Event "5th Thessaloniki SKG Open-B 2024"]
[Site "Thessaloniki"]
[Date "2024.08.07"]
[Round "3.3"]
[White "Chalkias, Michail Panagiotis"]
[Black "Avanesyan, Aleksandr"]
[Result "1/2-1/2"]
[ECO "E04"]
[WhiteElo "1772"]
[BlackElo "1700"]
[Annotator "NA RC"]
[PlyCount "91"]
[EventDate "2024.08.05"]
[EventType "swiss"]
[EventCountry "GRE"]
[SourceTitle "playchess.com"]
[Source "ChessBase"]
[SourceQuality "1"]
[TimeControl "40/5400+30:1800+30"]

1. d4 {[%emt 1:31:00]} d5 {[%emt 0:00:06]} 2. c4 {[%emt 0:00:00]} c6 {[%emt 0:00:04]} 3. Nf3 {[%emt 0:00:00]} Nf6 {[%emt 0:00:07]} 4. g3 {[%emt 0:00:00]} e6 {[%emt 0:00:37]} 5. Bg2 {[%emt 0:00:00]} dxc4 {[%emt 0:00:21]} 6. Ne5 {[%emt 0:00:00]} Nbd7 {[%emt 0:06:05]} 7. Nxc4 {[%emt 0:00:00]} Nb6 {[%emt 0:01:33]} 8. Nxb6 {[%emt 0:00:00]} Qxb6 {[%emt 0:00:15]} 9. O-O {[%emt 0:00:00]} Be7 {[%emt 0:01:17]} 10. Nc3 {[%emt 0:00:00]} O-O {[%emt 0:00:19]} 11. e3 {[%emt 0:00:00]} Rd8 {[%emt 0:01:32]} 12. Qb3 {[%emt 0:00:00]} Qc7 {[%emt 0:04:26]} 13. Rd1 {[%emt 0:00:00]} Qb6 {[%emt 0:11:12]} 14. Na4 {[%emt 0:00:00]} Qxb3 {[%emt 0:00:24]} 15. axb3 {[%emt 0:00:00]} e5 {[%emt 0:00:13]} 16. Nb6 {[%emt 0:00:00]} Bg4 {[%emt 0:01:05]} 17. Nxa8 {[%emt 0:00:00]} Bxd1 {[%emt 0:00:04]} 18. Rxa7 {[%emt 0:00:00]} exd4 {[%emt 0:02:27]} 19. exd4 {[%emt 0:00:00]} Rxd4 {[%emt 0:02:45]} 20. Be3 {[%emt 0:00:00]} Rd8 {[%emt 0:04:07]} 21. Nb6 {[%emt 0:00:00]} Ng4 {[%emt 0:05:04]} 22. Nc4 {[%emt 0:00:00]} Bxb3 {[%emt 0:06:57]} 23. Nd2 {[%emt 0:00:00]} Nxe3 {[%emt 0:00:32]} 24. fxe3 {[%emt 0:00:00]} Rxd2 {[%emt 0:03:09]} 25. Rxb7 {[%emt 0:00:00]} Rxg2+ {[%emt 0:02:16]} 26. Kxg2 {[%emt 0:00:00]} Bd5+ {[%emt 0:00:17]} 27. Kf2 {[%emt 0:00:00]} Bf8 {[%emt 0:00:55]} 28. Rb8 {[%emt 0:00:00]} g6 {[%emt 0:01:17]} 29. b4 {[%emt 0:00:00]} Kg7 {[%emt 0:00:15]} 30. b5 {[%emt 0:00:00]} cxb5 {[%emt 0:01:06]} 31. Rxb5 {[%emt 0:00:00]} Be6 {[%emt 0:00:08]} 32. Kf3 {[%emt 0:00:00]} h5 {[%emt 0:00:19]} 33. Kf2 {[%emt 0:00:00]} Bd6 {[%emt 0:00:53]} 34. h4 {[%emt 0:00:00]} Kf6 {[%emt 0:00:47]} 35. Ra5 {[%emt 0:00:00]} Bg4 {[%emt 0:00:28]} 36. Rb5 {[%emt 0:00:00]} Be6 {[%emt 0:02:08]} 37. Ra5 {[%emt 0:00:00]} Kg7 {[%emt 0:00:06]} 38. Ra6 {[%emt 0:00:00]} Be7 {[%emt 0:00:07]} 39. Ra7 {[%emt 0:00:00]} Bf6 {[%emt 0:00:07]} 40. Kf3 {[%emt 0:00:00]} Be5 {[%emt 0:00:00]} 41. Re7 {[%emt 0:00:00]} Kf6 {[%emt 0:02:06]} 42. Ra7 {[%emt 0:00:00]} Bg4+ {[%emt 0:00:21]} 43. Kf2 {[%emt 0:00:00]} Be6 {[%emt 0:00:34]} 44. Ra5 {[%emt 0:00:00]} Bc3 {[%emt 0:01:01]} 45. Rc5 {[%emt 0:00:00]} Bb4 {[%emt 0:00:13]} 46. Rb5 {[%emt 0:00:00]} 1/2-1/2

[Event "5th Thessaloniki SKG Open-B 2024"]
[Site "Thessaloniki"]
[Date "2024.08.07"]
[Round "3.4"]
[White "Christou, Lambros"]
[Black "Nakitsas, Stergios"]
[Result "0-1"]
[ECO "C02"]
[WhiteElo "1707"]
[BlackElo "1759"]
[Annotator "NA RC"]
[PlyCount "56"]
[EventDate "2024.08.05"]
[EventType "swiss"]
[EventCountry "GRE"]
[SourceTitle "playchess.com"]
[Source "ChessBase"]
[SourceQuality "1"]
[TimeControl "40/5400+30:1800+30"]

1. e4 {[%emt 0:00:10]} e6 {[%emt 0:00:10]} 2. d4 {[%emt 0:00:10]} d5 {[%emt 0:00:04]} 3. e5 {[%emt 0:00:06]} c5 {[%emt 0:00:04]} 4. c3 {[%emt 0:00:04]} Nc6 {[%emt 0:00:06]} 5. Nf3 {[%emt 0:00:05]} Bd7 {[%emt 0:00:16]} 6. Be2 {[%emt 0:00:11]} f6 {[%emt 0:01:15]} 7. O-O {[%emt 0:01:07]} fxe5 {[%emt 0:03:51]} 8. dxe5 {[%emt 0:00:18]} Nge7 {[%emt 0:00:29]} 9. Bd3 {[%emt 0:01:53]} Qc7 {[%emt 0:02:17]} 10. Re1 {[%emt 0:02:16]} g6 {[%emt 0:01:55]} 11. Bg5 {[%emt 0:06:24]} Bg7 {[%emt 0:00:07]} 12. Bf6 {[%emt 0:00:57]} O-O {[%emt 0:00:10]} 13. Bxg7 {[%emt 0:01:22]} Kxg7 {[%emt 0:00:06]} 14. Nbd2 {[%emt 0:03:33]} c4 {[%emt 0:04:29]} 15. Bc2 {[%emt 0:04:32]} b5 {[%emt 0:01:07]} 16. b4 {[%emt 0:01:41]} a5 {[%emt 0:01:04]} 17. a4 {[%emt 0:00:32]} axb4 {[%emt 0:02:04]} 18. axb5 {[%emt 0:00:12]} bxc3 {[%emt 0:00:14]} 19. Nxc4 {[%emt 0:01:33]} dxc4 {[%emt 0:15:00]} 20. bxc6 {[%emt 0:01:40]} Nxc6 {[%emt 0:02:21]} 21. Rxa8 {[%emt 0:07:32]} Rxa8 {[%emt 0:00:08]} 22. Be4 {[%emt 0:02:01]} Ra2 {[%emt 0:02:03]} 23. Qc1 {[%emt 0:11:06]} Qb6 {[%emt 0:02:48]} 24. Qg5 {[%emt 0:05:23]} Qxf2+ {[%emt 0:09:14]} 25. Kh1 {[%emt 0:00:07]} Re2 {[%emt 0:00:11]} 26. Qf6+ {[%emt 0:02:02]} Kg8 {[%emt 0:00:03]} 27. Rxe2 {[%emt 0:00:21]} Qxe2 {[%emt 0:00:08]} 28. Qh4 {[%emt 0:02:30]} c2 {[%emt 0:00:48]} 0-1

[Event "5th Thessaloniki SKG Open-B 2024"]
[Site "Thessaloniki"]
[Date "2024.08.07"]
[Round "3.5"]
[White "Polyzos, Vasileios"]
[Black "Symeonidis, Theofilos"]
[Result "1-0"]
[ECO "B51"]
[WhiteElo "1700"]
[BlackElo "1757"]
[Annotator "NA RC"]
[PlyCount "53"]
[EventDate "2024.08.05"]
[EventType "swiss"]
[EventCountry "GRE"]
[SourceTitle "playchess.com"]
[Source "ChessBase"]
[SourceQuality "1"]
[TimeControl "40/5400+30:1800+30"]

1. e4 {[%emt 0:00:06]} c5 {[%emt 0:00:55]} 2. Nf3 {[%emt 0:00:10]} d6 {[%emt 0:00:15]} 3. Bb5+ {[%emt 0:00:11]} Nd7 {[%emt 0:05:31]} 4. O-O {[%emt 0:00:41]} a6 {[%emt 0:00:16]} 5. Bxd7+ {[%emt 0:00:17]} Bxd7 {[%emt 0:00:16]} 6. c3 {[%emt 0:01:56]} Nf6 {[%emt 0:00:23]} 7. Re1 {[%emt 0:00:35]} Bc6 {[%emt 0:02:35]} 8. e5 {[%emt 0:09:56]} dxe5 {[%emt 0:03:14]} 9. Nxe5 {[%emt 0:00:36]} Qd5 {[%emt 0:10:04]} 10. f3 {[%emt 0:13:16]} e6 {[%emt 0:03:57]} 11. d4 {[%emt 0:04:01]} Rd8 {[%emt 0:14:14]} 12. Be3 {[%emt 0:01:49]} cxd4 {[%emt 0:05:43]} 13. cxd4 {[%emt 0:02:13]} Bb4 {[%emt 0:06:50]} 14. Nc3 {[%emt 0:01:20]} Bxc3 {[%emt 0:01:45]} 15. bxc3 {[%emt 0:00:20]} b5 {[%emt 0:09:30]} 16. Bg5 {[%emt 0:04:50]} h6 {[%emt 0:03:34]} 17. Bh4 {[%emt 0:09:09]} g5 {[%emt 0:02:46]} 18. Bg3 {[%emt 0:01:52]} Nh5 {[%emt 0:12:11]} 19. Qb3 {[%emt 0:01:02]} O-O {[%emt 0:01:37]} 20. Qc2 {[%emt 0:21:47]} b4 {[%emt 0:11:28]} 21. cxb4 {[%emt 0:02:29]} Nxg3 {[%emt 0:02:44]} 22. Nxc6 {[%emt 0:00:58]} Rc8 {[%emt 0:00:23]} 23. Ne7+ {[%emt 0:01:00]} Kg7 {[%emt 0:00:03]} 24. Nxc8 {[%emt 0:01:06]} Rxc8 {[%emt 0:01:41]} 25. Qb2 {[%emt 0:03:50]} Rc2 {[%emt 0:00:29]} 26. Qxc2 {[%emt 0:01:05]} Qxd4+ {[%emt 0:00:11]} 27. Qf2 {[%emt 0:00:17]} 1-0

[Event "5th Thessaloniki SKG Open-B 2024"]
[Site "Thessaloniki"]
[Date "2024.08.07"]
[Round "3.6"]
[White "Seretis, Nikolaos G"]
[Black "Triantaphylidis, Alexandros I"]
[Result "1/2-1/2"]
[ECO "B12"]
[WhiteElo "1675"]
[BlackElo "1745"]
[Annotator "NA RC"]
[PlyCount "56"]
[EventDate "2024.08.05"]
[EventType "swiss"]
[EventCountry "GRE"]
[SourceTitle "playchess.com"]
[Source "ChessBase"]
[SourceQuality "1"]
[TimeControl "40/5400+30:1800+30"]

1. e4 {[%emt 0:00:03]} c6 {[%emt 0:00:05]} 2. d4 {[%emt 0:00:06]} d5 {[%emt 0:00:05]} 3. e5 {[%emt 0:00:05]} c5 {[%emt 0:00:08]} 4. dxc5 {[%emt 0:00:05]} e6 {[%emt 0:00:05]} 5. Nf3 {[%emt 0:00:36]} Bxc5 {[%emt 0:00:07]} 6. a3 {[%emt 0:00:54]} Ne7 {[%emt 0:00:54]} 7. b4 {[%emt 0:00:35]} Bb6 {[%emt 0:00:07]} 8. Bb2 {[%emt 0:00:11]} Ng6 {[%emt 0:00:09]} 9. c4 {[%emt 0:00:22]} dxc4 {[%emt 0:00:53]} 10. Qxd8+ {[%emt 0:00:12]} Bxd8 {[%emt 0:00:09]} 11. Bxc4 {[%emt 0:00:04]} O-O {[%emt 0:00:29]} 12. O-O {[%emt 0:00:37]} Bd7 {[%emt 0:00:36]} 13. Nbd2 {[%emt 0:00:37]} b5 {[%emt 0:16:29]} 14. Bd3 {[%emt 0:01:01]} Bc6 {[%emt 0:03:42]} 15. Rac1 {[%emt 0:01:25]} Nf4 {[%emt 0:01:59]} 16. Ne1 {[%emt 0:08:38]} Bg5 {[%emt 0:07:50]} 17. Rc2 {[%emt 0:06:43]} Rd8 {[%emt 0:22:24]} 18. Nef3 {[%emt 0:15:22]} Nxd3 {[%emt 0:11:10]} 19. Nxg5 {[%emt 0:00:21]} Nxb2 {[%emt 0:00:10]} 20. Rxb2 {[%emt 0:00:11]} Nd7 {[%emt 0:00:28]} 21. f4 {[%emt 0:02:27]} Nb6 {[%emt 0:05:11]} 22. Rc1 {[%emt 0:03:37]} Rac8 {[%emt 0:00:44]} 23. Rbc2 {[%emt 0:01:46]} Bb7 {[%emt 0:06:52]} 24. Rxc8 {[%emt 0:02:30]} Rxc8 {[%emt 0:00:16]} 25. Rxc8+ {[%emt 0:00:11]} Nxc8 {[%emt 0:00:52]} 26. Nge4 {[%emt 0:00:19]} Bxe4 {[%emt 0:00:15]} 27. Nxe4 {[%emt 0:00:06]} Kf8 {[%emt 0:02:14]} 28. g3 {[%emt 0:00:15]} Ke7 {[%emt 0:00:12]} 1/2-1/2

[Event "5th Thessaloniki SKG Open-B 2024"]
[Site "Thessaloniki"]
[Date "2024.08.07"]
[Round "3.7"]
[White "Spagkakas, Konstantinos"]
[Black "Keramaros, Vasileios"]
[Result "0-1"]
[ECO "A13"]
[WhiteElo "1665"]
[BlackElo "1719"]
[Annotator "NA RC"]
[PlyCount "70"]
[EventDate "2024.08.05"]
[EventType "swiss"]
[EventCountry "GRE"]
[SourceTitle "playchess.com"]
[Source "ChessBase"]
[SourceQuality "1"]
[TimeControl "40/5400+30:1800+30"]

1. c4 {[%emt 0:00:07]} e6 {[%emt 0:00:03]} 2. Nf3 {[%emt 0:00:07]} d5 {[%emt 0:00:14]} 3. e3 {[%emt 0:00:04]} Nf6 {[%emt 0:00:04]} 4. b3 {[%emt 0:00:09]} Be7 {[%emt 0:00:08]} 5. Bb2 {[%emt 0:00:05]} b6 {[%emt 0:00:01]} 6. Be2 {[%emt 0:00:10]} Bb7 {[%emt 0:00:06]} 7. O-O {[%emt 0:00:08]} O-O {[%emt 0:00:15]} 8. d4 {[%emt 0:00:07]} Nbd7 {[%emt 0:00:04]} 9. Nbd2 {[%emt 0:00:23]} Rc8 {[%emt 0:00:11]} 10. Rc1 {[%emt 0:00:38]} c5 {[%emt 0:00:21]} 11. dxc5 {[%emt 0:00:50]} Nxc5 {[%emt 0:00:13]} 12. Ne5 {[%emt 0:03:24]} Nfd7 {[%emt 0:06:29]} 13. Nxd7 Nxd7 {[%emt 0:00:37]} 14. Nf3 {[%emt 0:06:14]} Bf6 {[%emt 0:01:28]} 15. Nd4 {[%emt 0:05:04]} dxc4 {[%emt 0:03:05]} 16. Bxc4 {[%emt 0:04:27]} Ne5 {[%emt 0:00:19]} 17. Qe2 {[%emt 0:02:37]} Nxc4 {[%emt 0:01:26]} 18. bxc4 {[%emt 0:02:11]} Qe7 {[%emt 0:01:18]} 19. Rfd1 {[%emt 0:03:26]} Rfd8 {[%emt 0:01:10]} 20. Rd2 {[%emt 0:05:56]} Qb4 {[%emt 0:04:24]} 21. a3 {[%emt 0:04:14]} Qa5 {[%emt 0:02:12]} 22. Rdc2 {[%emt 0:04:56]} Be7 {[%emt 0:05:10]} 23. Nb5 {[%emt 0:10:27]} Be4 {[%emt 0:05:02]} 24. Qg4 {[%emt 0:06:18]} Bg6 {[%emt 0:00:05]} 25. Re2 {[%emt 0:01:51]} Qa4 {[%emt 0:00:31]} 26. Ree1 {[%emt 0:06:35]} h5 {[%emt 0:00:38]} 27. Qg3 {[%emt 0:00:32]} Rxc4 {[%emt 0:00:23]} 28. Rxc4 {[%emt 0:04:57]} Qxc4 {[%emt 0:00:59]} 29. Nd4 {[%emt 0:01:42]} Bf6 {[%emt 0:01:15]} 30. Rc1 {[%emt 0:01:04]} Qa2 {[%emt 0:00:42]} 31. Bc3 {[%emt 0:00:32]} Rc8 {[%emt 0:00:15]} 32. h3 {[%emt 0:00:20]} Rxc3 {[%emt 0:00:18]} 33. Qb8+ {[%emt 0:00:48]} Kh7 {[%emt 0:00:05]} 34. Rxc3 {[%emt 0:27:07]} Qa1+ {[%emt 0:00:05]} 35. Kh2 {[%emt 0:00:00]} Qxc3 {[%emt 0:00:06]} 0-1

[Event "5th Thessaloniki SKG Open-B 2024"]
[Site "Thessaloniki"]
[Date "2024.08.08"]
[Round "4.1"]
[White "Keramaros, Vasileios"]
[Black "Pantoglou, Dimitrios"]
[Result "1/2-1/2"]
[ECO "E08"]
[WhiteElo "1719"]
[BlackElo "1893"]
[Annotator "NA RC"]
[PlyCount "78"]
[EventDate "2024.08.05"]
[EventType "swiss"]
[EventCountry "GRE"]
[SourceTitle "playchess.com"]
[Source "ChessBase"]
[SourceQuality "1"]
[TimeControl "40/5400+30:1800+30"]

1. c4 {[%emt 0:00:04]} e6 {[%emt 0:02:50]} 2. g3 {[%emt 0:00:08]} d5 {[%emt 0:00:10]} 3. Bg2 {[%emt 0:00:14]} Nf6 {[%emt 0:00:11]} 4. Nf3 {[%emt 0:00:08]} Be7 {[%emt 0:00:15]} 5. O-O {[%emt 0:00:04]} O-O {[%emt 0:00:12]} 6. d4 {[%emt 0:00:07]} Nbd7 {[%emt 0:04:40]} 7. Qc2 {[%emt 0:00:35]} b6 {[%emt 0:03:04]} 8. b3 {[%emt 0:04:06]} Bb7 {[%emt 0:00:27]} 9. Bb2 {[%emt 0:00:19]} c5 {[%emt 0:02:21]} 10. Nbd2 {[%emt 0:01:24]} Rc8 {[%emt 0:00:14]} 11. Ne5 {[%emt 0:05:55]} cxd4 {[%emt 0:19:32]} 12. Bxd4 {[%emt 0:00:44]} Qc7 {[%emt 0:00:13]} 13. Nxd7 {[%emt 0:02:20]} Qxd7 {[%emt 0:00:24]} 14. Qb2 {[%emt 0:00:28]} Rfd8 {[%emt 0:02:24]} 15. Rfd1 {[%emt 0:01:19]} dxc4 {[%emt 0:02:12]} 16. Bxb7 {[%emt 0:00:22]} c3 {[%emt 0:06:20]} 17. Bxc3 {[%emt 0:00:05]} Qxb7 {[%emt 0:00:13]} 18. Nf3 {[%emt 0:12:08]} Qe4 {[%emt 0:00:39]} 19. Rac1 {[%emt 0:04:23]} h5 {[%emt 0:10:12]} 20. Rxd8+ {[%emt 0:02:31]} Rxd8 {[%emt 0:00:06]} 21. Bxf6 {[%emt 0:00:51]} Bxf6 {[%emt 0:00:17]} 22. Qc2 {[%emt 0:00:06]} Qd5 {[%emt 0:06:51]} 23. e4 {[%emt 0:03:57]} Qb5 {[%emt 0:05:20]} 24. Qc4 {[%emt 0:03:22]} Qa5 {[%emt 0:00:55]} 25. Qc7 {[%emt 0:01:31]} Rd3 {[%emt 0:04:17]} 26. Kg2 {[%emt 0:02:54]} Qxa2 {[%emt 0:05:06]} 27. Qb8+ {[%emt 0:05:46]} Rd8 {[%emt 0:02:26]} 28. Rc8 {[%emt 0:00:41]} Rxc8 {[%emt 0:01:20]} 29. Qxc8+ {[%emt 0:00:05]} Kh7 {[%emt 0:00:10]} 30. Qe8 {[%emt 0:00:19]} Qe2 {[%emt 0:17:45]} 31. e5 {[%emt 0:01:06]} Bxe5 {[%emt 0:01:03]} 32. Qxf7 {[%emt 0:00:10]} Bf6 {[%emt 0:01:22]} 33. Qxh5+ {[%emt 0:00:10]} Kg8 {[%emt 0:00:04]} 34. Qe8+ {[%emt 0:00:07]} Kh7 {[%emt 0:00:13]} 35. g4 {[%emt 0:01:24]} Qe4 {[%emt 0:00:45]} 36. Qh5+ {[%emt 0:01:33]} Kg8 {[%emt 0:00:03]} 37. Qe8+ {[%emt 0:04:06]} Kh7 {[%emt 0:00:07]} 38. Qh5+ {[%emt 0:01:03]} Kg8 {[%emt 0:00:02]} 39. Qe8+ {[%emt 0:00:23]} Kh7 {[%emt 0:00:10]} 1/2-1/2

[Event "5th Thessaloniki SKG Open-B 2024"]
[Site "Thessaloniki"]
[Date "2024.08.08"]
[Round "4.2"]
[White "Nakitsas, Stergios"]
[Black "Polyzos, Vasileios"]
[Result "0-1"]
[ECO "B48"]
[WhiteElo "1759"]
[BlackElo "1700"]
[Annotator "NA RC"]
[PlyCount "54"]
[EventDate "2024.08.05"]
[EventType "swiss"]
[EventCountry "GRE"]
[SourceTitle "playchess.com"]
[Source "ChessBase"]
[SourceQuality "1"]
[TimeControl "40/5400+30:1800+30"]

1. e4 {[%emt 0:06:33]} c5 {[%emt 0:00:14]} 2. Nf3 {[%emt 0:00:48]} e6 {[%emt 0:00:06]} 3. d4 {[%emt 0:00:09]} cxd4 {[%emt 0:00:08]} 4. Nxd4 {[%emt 0:00:09]} Nc6 {[%emt 0:00:09]} 5. Nc3 {[%emt 0:00:46]} Qc7 {[%emt 0:00:16]} 6. Ndb5 {[%emt 0:01:23]} Qb8 {[%emt 0:00:13]} 7. Be3 {[%emt 0:09:58]} a6 {[%emt 0:01:04]} 8. Nd4 {[%emt 0:00:09]} Qc7 {[%emt 0:00:34]} 9. Qd2 {[%emt 0:00:22]} Nf6 {[%emt 0:02:09]} 10. f3 {[%emt 0:00:29]} b5 {[%emt 0:01:32]} 11. O-O-O {[%emt 0:01:18]} Bb7 {[%emt 0:04:42]} 12. Kb1 {[%emt 0:02:12]} Be7 {[%emt 1:25:23]} 13. g4 {[%emt 0:01:18]} Ne5 {[%emt 0:00:00]} 14. Bf4 {[%emt 0:04:57]} Rc8 {[%emt 0:00:00]} 15. g5 {[%emt 0:01:08]} Nh5 {[%emt 0:00:00]} 16. Bxe5 {[%emt 0:00:22]} Qxe5 {[%emt 0:00:00]} 17. Ndxb5 {[%emt 0:00:04]} O-O {[%emt 0:00:00]} 18. Qxd7 {[%emt 0:03:29]} Bxg5 {[%emt 0:00:00]} 19. Qxb7 {[%emt 0:00:49]} axb5 {[%emt 0:00:00]} 20. Nxb5 {[%emt 0:12:44]} Bf6 {[%emt 0:00:00]} 21. Nd4 {[%emt 0:02:08]} Qc5 {[%emt 0:00:00]} 22. c3 {[%emt 0:03:44]} Bxd4 {[%emt 0:00:00]} 23. Rxd4 {[%emt 0:01:31]} Rb8 {[%emt 0:00:00]} 24. Qd7 {[%emt 0:03:01]} Qxc3 {[%emt 0:00:00]} 25. Rd2 {[%emt 0:00:15]} Nf4 {[%emt 0:00:00]} 26. Qd4 {[%emt 0:05:41]} Rxb2+ {[%emt 0:00:00]} 27. Ka1 {[%emt 0:00:27]} Qc1# {[%emt 0:07:30]} 0-1

[Event "5th Thessaloniki SKG Open-B 2024"]
[Site "Thessaloniki"]
[Date "2024.08.08"]
[Round "4.3"]
[White "Petkakis, Odysseas"]
[Black "Chalkias, Michail Panagiotis"]
[Result "0-1"]
[ECO "E61"]
[WhiteElo "1701"]
[BlackElo "1772"]
[Annotator "NA RC"]
[PlyCount "74"]
[EventDate "2024.08.05"]
[EventType "swiss"]
[EventCountry "GRE"]
[SourceTitle "playchess.com"]
[Source "ChessBase"]
[SourceQuality "1"]
[TimeControl "40/5400+30:1800+30"]

1. d4 {[%emt 0:00:05]} Nf6 {[%emt 0:14:42]} 2. c4 {[%emt 0:00:26]} g6 {[%emt 0:00:02]} 3. Nc3 {[%emt 0:00:12]} Bg7 {[%emt 0:00:01]} 4. Nf3 {[%emt 0:00:16]} O-O {[%emt 0:00:05]} 5. Bf4 {[%emt 0:00:29]} d6 {[%emt 0:00:03]} 6. h3 {[%emt 0:00:23]} Nbd7 {[%emt 0:00:12]} 7. e3 {[%emt 0:00:53]} c6 {[%emt 0:00:19]} 8. Be2 {[%emt 0:01:42]} Re8 {[%emt 0:00:20]} 9. O-O {[%emt 0:00:33]} Qb6 {[%emt 0:00:24]} 10. Qb3 {[%emt 0:08:02]} Qa5 {[%emt 0:01:30]} 11. Rad1 {[%emt 0:03:11]} e5 {[%emt 0:00:15]} 12. dxe5 {[%emt 0:00:46]} dxe5 {[%emt 0:00:05]} 13. Bg3 {[%emt 0:02:29]} Nc5 {[%emt 0:01:20]} 14. Qc2 {[%emt 0:03:09]} Bf5 {[%emt 0:00:31]} 15. Qc1 {[%emt 0:00:30]} e4 {[%emt 0:00:42]} 16. Nd4 {[%emt 0:01:45]} Be6 {[%emt 0:07:10]} 17. Nxe6 {[%emt 0:03:31]} Nxe6 {[%emt 0:00:42]} 18. Qc2 {[%emt 0:02:06]} Nf8 {[%emt 0:01:48]} 19. a3 {[%emt 0:01:50]} h5 {[%emt 0:09:00]} 20. Bd6 {[%emt 0:02:52]} Qf5 {[%emt 0:04:50]} 21. f3 {[%emt 0:08:11]} Qg5 {[%emt 0:00:21]} 22. Bf4 {[%emt 0:03:56]} Qh4 {[%emt 0:02:59]} 23. Kh2 {[%emt 0:02:54]} exf3 {[%emt 0:01:08]} 24. g3 {[%emt 0:00:16]} Ng4+ {[%emt 0:00:01]} 25. Kg1 {[%emt 0:00:56]} Qxh3 {[%emt 0:00:24]} 26. Bxf3 {[%emt 0:00:47]} Nxe3 {[%emt 0:01:39]} 27. Qf2 {[%emt 0:06:34]} Nxf1 {[%emt 0:00:35]} 28. Rxf1 {[%emt 0:00:08]} Rad8 {[%emt 0:00:51]} 29. Bg2 {[%emt 0:00:25]} Qf5 {[%emt 0:00:20]} 30. Kh2 {[%emt 0:01:22]} Ne6 {[%emt 0:02:15]} 31. Bh3 {[%emt 0:00:51]} Qf6 {[%emt 0:00:01]} 32. Qxa7 {[%emt 0:04:51]} Nxf4 {[%emt 0:00:24]} 33. Rxf4 {[%emt 0:00:12]} Qe7 {[%emt 0:01:15]} 34. Qf2 {[%emt 0:03:50]} Bxc3 {[%emt 0:00:40]} 35. bxc3 {[%emt 0:01:01]} Qe2 {[%emt 0:00:06]} 36. Rxf7 {[%emt 0:00:21]} Rd2 {[%emt 0:00:56]} 37. Kg1 {[%emt 0:01:33]} Qd1+ {[%emt 0:00:55]} 0-1